[Event "Titled Tuesday Blitz October 19 2021"]
[White "Zubov, Alexander"]
[Black "Moskalenko, Alexander"]
[WhiteFideId "14109409"]
[BlackFideId "4155351"]
[WhiteElo "2685"]
[BlackElo "2515"]
[Result "1-0"]
[Round "04"]
[TimeControl "180+1"]
[Date "2021.10.19"]
[WhiteClock "0:00:08"]
[BlackClock "0:00:01"]

1. d4 {[%clk 0:03:00]}  Nf6 {[%clk 0:02:25]} 2. c4 {[%clk 0:03:00]}  e6 {[%clk 0:02:26]} 3. Nf3 {[%clk 0:03:00]}  b6 {[%clk 0:02:26]} 4. a3 {[%clk 0:03:00]}  Bb7 {[%clk 0:02:24]} 5. Nc3 {[%clk 0:03:00]}  d5 {[%clk 0:02:24]} 6. Bg5 {[%clk 0:02:59]}  Be7 {[%clk 0:02:08]} 7. e3 {[%clk 0:02:59]}  O-O {[%clk 0:02:04]} 8. Rc1 {[%clk 0:02:59]}  Nbd7 {[%clk 0:02:01]} 9. cxd5 {[%clk 0:02:59]}  exd5 {[%clk 0:02:01]} 10. Be2 {[%clk 0:02:59]}  c5 {[%clk 0:02:01]} 11. O-O {[%clk 0:02:58]}  a6 {[%clk 0:02:00]} 12. dxc5 {[%clk 0:02:55]}  bxc5 {[%clk 0:01:57]} 13. Qb3 {[%clk 0:02:48]}  Bc6 {[%clk 0:01:49]} 14. Rfd1 {[%clk 0:02:44]}  Qc7 {[%clk 0:01:49]} 15. Qc2 {[%clk 0:02:30]}  Bd6 {[%clk 0:01:41]} 16. b4 {[%clk 0:02:14]}  cxb4 {[%clk 0:01:28]} 17. Na2 {[%clk 0:02:14]}  Rfc8 {[%clk 0:01:25]} 18. Nxb4 {[%clk 0:02:13]}  Bb7 {[%clk 0:01:25]} 19. Qxc7 {[%clk 0:01:44]}  Rxc7 {[%clk 0:01:26]} 20. Rxc7 {[%clk 0:01:40]}  Bxc7 {[%clk 0:01:27]} 21. Rc1 {[%clk 0:01:19]}  Rc8 {[%clk 0:01:26]} 22. Kf1 {[%clk 0:01:13]}  a5 {[%clk 0:01:11]} 23. Nd3 {[%clk 0:01:07]}  Bd6 {[%clk 0:01:09]} 24. Rb1 {[%clk 0:01:04]}  Ba6 {[%clk 0:01:02]} 25. a4 {[%clk 0:00:36]}  Rc2 {[%clk 0:01:01]} 26. Bxf6 {[%clk 0:00:33]}  gxf6 {[%clk 0:00:28]} 27. Nf4 {[%clk 0:00:32]}  Bxe2+ {[%clk 0:00:26]} 28. Nxe2 {[%clk 0:00:33]}  Bb4 {[%clk 0:00:20]} 29. Nf4 {[%clk 0:00:29]}  Ne5 {[%clk 0:00:17]} 30. Nxe5 {[%clk 0:00:27]}  fxe5 {[%clk 0:00:17]} 31. Nxd5 {[%clk 0:00:28]}  Rc4 {[%clk 0:00:04]} 32. f3 {[%clk 0:00:17]}  f5 {[%clk 0:00:02]} 33. Kf2 {[%clk 0:00:12]}  Kg7 {[%clk 0:00:02]} 34. Kg3 {[%clk 0:00:11]}  h5 {[%clk 0:00:02]} 35. h4 {[%clk 0:00:11]}  Kf7 {[%clk 0:00:01]} 36. Rb2 {[%clk 0:00:08]} 1-0


[Site "https://www.chess.com"]

[Event "Titled Tuesday Blitz October 19 2021"]
[White "Bluebaum, Matthias"]
[Black "Gurvich, Vitaly"]
[WhiteFideId "24651516"]
[BlackFideId "24164852"]
[WhiteElo "2681"]
[BlackElo "2275"]
[Result "1-0"]
[Round "05"]
[TimeControl "180+1"]
[Date "2021.10.19"]
[WhiteClock "0:00:14"]
[BlackClock "0:00:03"]

1. d4 {[%clk 0:03:00]}  Nf6 {[%clk 0:02:58]} 2. Nf3 {[%clk 0:03:01]}  g6 {[%clk 0:02:58]} 3. Nc3 {[%clk 0:03:01]}  d5 {[%clk 0:02:58]} 4. Bf4 {[%clk 0:03:02]}  c6 {[%clk 0:02:58]} 5. e3 {[%clk 0:03:02]}  Bg7 {[%clk 0:02:58]} 6. h3 {[%clk 0:03:02]}  O-O {[%clk 0:02:55]} 7. Be2 {[%clk 0:03:03]}  Re8 {[%clk 0:02:53]} 8. O-O {[%clk 0:03:02]}  Nbd7 {[%clk 0:02:53]} 9. Bh2 {[%clk 0:03:02]}  a5 {[%clk 0:02:51]} 10. a4 {[%clk 0:03:02]}  Nb6 {[%clk 0:02:50]} 11. Nb1 {[%clk 0:02:58]}  Nfd7 {[%clk 0:02:48]} 12. Nbd2 {[%clk 0:02:52]}  e5 {[%clk 0:02:47]} 13. dxe5 {[%clk 0:02:44]}  Nxe5 {[%clk 0:02:48]} 14. Nxe5 {[%clk 0:02:44]}  Bxe5 {[%clk 0:02:49]} 15. Bxe5 {[%clk 0:02:44]}  Rxe5 {[%clk 0:02:50]} 16. Nf3 {[%clk 0:02:36]}  Re8 {[%clk 0:02:49]} 17. Qd4 {[%clk 0:02:31]}  Qc7 {[%clk 0:02:46]} 18. Qh4 {[%clk 0:02:26]}  Bf5 {[%clk 0:02:36]} 19. Bd3 {[%clk 0:02:12]}  Be4 {[%clk 0:02:18]} 20. Ng5 {[%clk 0:02:06]}  f5 {[%clk 0:02:18]} 21. Nxe4 {[%clk 0:01:42]}  fxe4 {[%clk 0:02:19]} 22. Be2 {[%clk 0:01:42]}  Qe7 {[%clk 0:02:15]} 23. Qxe7 {[%clk 0:01:34]}  Rxe7 {[%clk 0:02:16]} 24. b3 {[%clk 0:01:33]}  Rd8 {[%clk 0:02:13]} 25. Rfb1 {[%clk 0:01:30]}  Nd7 {[%clk 0:02:06]} 26. c3 {[%clk 0:01:25]}  Ne5 {[%clk 0:02:00]} 27. b4 {[%clk 0:01:22]}  axb4 {[%clk 0:01:46]} 28. Rxb4 {[%clk 0:01:21]}  Rf8 {[%clk 0:01:38]} 29. Rab1 {[%clk 0:01:17]}  Ref7 {[%clk 0:01:31]} 30. Rf1 {[%clk 0:01:09]}  Ra8 {[%clk 0:01:29]} 31. c4 {[%clk 0:01:05]}  Kg7 {[%clk 0:00:54]} 32. cxd5 {[%clk 0:01:03]}  cxd5 {[%clk 0:00:54]} 33. Rd4 {[%clk 0:00:56]}  Nc6 {[%clk 0:00:54]} 34. Rxd5 {[%clk 0:00:54]}  Rxa4 {[%clk 0:00:53]} 35. Rd6 {[%clk 0:00:41]}  Rb4 {[%clk 0:00:47]} 36. Rfd1 {[%clk 0:00:28]}  Ne5 {[%clk 0:00:45]} 37. R6d5 {[%clk 0:00:27]}  Nc6 {[%clk 0:00:44]} 38. R1d2 {[%clk 0:00:26]}  Rb1+ {[%clk 0:00:42]} 39. Rd1 {[%clk 0:00:26]}  Rb4 {[%clk 0:00:41]} 40. R5d2 {[%clk 0:00:25]}  Re7 {[%clk 0:00:38]} 41. Bg4 {[%clk 0:00:24]}  Ne5 {[%clk 0:00:37]} 42. Be2 {[%clk 0:00:24]}  Nc6 {[%clk 0:00:37]} 43. Rc1 {[%clk 0:00:25]}  Ne5 {[%clk 0:00:37]} 44. Rcc2 {[%clk 0:00:20]}  Rf7 {[%clk 0:00:34]} 45. Rb2 {[%clk 0:00:20]}  Ra4 {[%clk 0:00:32]} 46. Rd1 {[%clk 0:00:20]}  h5 {[%clk 0:00:30]} 47. Rb5 {[%clk 0:00:20]}  Nc6 {[%clk 0:00:25]} 48. Rdb1 {[%clk 0:00:20]}  Nd8 {[%clk 0:00:20]} 49. R5b4 {[%clk 0:00:21]}  Rxb4 {[%clk 0:00:18]} 50. Rxb4 {[%clk 0:00:22]}  Re7 {[%clk 0:00:19]} 51. Bd1 {[%clk 0:00:22]}  Kf6 {[%clk 0:00:19]} 52. Bc2 {[%clk 0:00:23]}  Nf7 {[%clk 0:00:16]} 53. Bxe4 {[%clk 0:00:23]}  Nd6 {[%clk 0:00:17]} 54. Bf3 {[%clk 0:00:23]}  Rc7 {[%clk 0:00:17]} 55. g4 {[%clk 0:00:22]}  hxg4 {[%clk 0:00:17]} 56. hxg4 {[%clk 0:00:23]}  b5 {[%clk 0:00:11]} 57. Kg2 {[%clk 0:00:21]}  Rc2 {[%clk 0:00:11]} 58. Kg3 {[%clk 0:00:20]}  g5 {[%clk 0:00:10]} 59. Rd4 {[%clk 0:00:20]}  Ke6 {[%clk 0:00:10]} 60. Rd5 {[%clk 0:00:21]}  b4 {[%clk 0:00:07]} 61. Rxg5 {[%clk 0:00:21]}  Kf6 {[%clk 0:00:05]} 62. Rd5 {[%clk 0:00:20]}  Nf7 {[%clk 0:00:05]} 63. Rb5 {[%clk 0:00:20]}  Rb2 {[%clk 0:00:05]} 64. Rb6+ {[%clk 0:00:19]}  Kg7 {[%clk 0:00:05]} 65. Bd5 {[%clk 0:00:19]}  Ne5 {[%clk 0:00:03]} 66. f4 {[%clk 0:00:19]}  Nd3 {[%clk 0:00:04]} 67. g5 {[%clk 0:00:19]}  Rb1 {[%clk 0:00:03]} 68. f5 {[%clk 0:00:19]}  Rg1+ {[%clk 0:00:03]} 69. Kh4 {[%clk 0:00:20]}  Nf2 {[%clk 0:00:02]} 70. Rb7+ {[%clk 0:00:19]}  Kh8 {[%clk 0:00:02]} 71. Rb8+ {[%clk 0:00:17]}  Kg7 {[%clk 0:00:02]} 72. Rg8+ {[%clk 0:00:18]}  Kh7 {[%clk 0:00:02]} 73. g6+ {[%clk 0:00:18]}  Kh6 {[%clk 0:00:02]} 74. Bf3 {[%clk 0:00:15]}  Nd3 {[%clk 0:00:01]} 75. Rh8+ {[%clk 0:00:13]}  Kg7 {[%clk 0:00:02]} 76. Rh7+ {[%clk 0:00:14]}  Kf6 {[%clk 0:00:02]} 77. Rf7+ {[%clk 0:00:14]}  Ke5 {[%clk 0:00:02]} 78. g7 {[%clk 0:00:13]}  Ne1 {[%clk 0:00:03]} 79. Bg4 {[%clk 0:00:14]}  b3 {[%clk 0:00:03]} 80. g8=Q {[%clk 0:00:14]}  Nf3+ {[%clk 0:00:03]} 81. Kh5 {[%clk 0:00:13]}  Rh1+ {[%clk 0:00:02]} 82. Kg6 {[%clk 0:00:14]}  Nh4+ {[%clk 0:00:03]} 83. Kg7 {[%clk 0:00:14]} 1-0


[Site "https://www.chess.com"]

[Event "Titled Tuesday Blitz October 19 2021"]
[White "Bocharov, Dmitry"]
[Black "Vallejo Diaz, Javier"]
[WhiteFideId "4138716"]
[BlackFideId "2256398"]
[WhiteElo "2535"]
[BlackElo "2605"]
[Result "0-1"]
[Round "05"]
[TimeControl "180+1"]
[Date "2021.10.19"]
[WhiteClock "0:00:08"]
[BlackClock "0:00:06"]

1. e4 {[%clk 0:03:00]}  c5 {[%clk 0:02:59]} 2. Nf3 {[%clk 0:02:56]}  e6 {[%clk 0:02:59]} 3. d4 {[%clk 0:02:56]}  cxd4 {[%clk 0:02:59]} 4. Nxd4 {[%clk 0:02:56]}  a6 {[%clk 0:03:00]} 5. Bd3 {[%clk 0:02:55]}  Bc5 {[%clk 0:02:59]} 6. Nb3 {[%clk 0:02:55]}  Be7 {[%clk 0:02:58]} 7. Qg4 {[%clk 0:02:54]}  Nf6 {[%clk 0:02:53]} 8. Qg3 {[%clk 0:02:49]}  d6 {[%clk 0:02:43]} 9. Nc3 {[%clk 0:02:46]}  Nc6 {[%clk 0:02:39]} 10. O-O {[%clk 0:02:45]}  O-O {[%clk 0:02:38]} 11. f4 {[%clk 0:02:46]}  e5 {[%clk 0:02:30]} 12. f5 {[%clk 0:02:42]}  Kh8 {[%clk 0:01:49]} 13. Kh1 {[%clk 0:02:24]}  Nb4 {[%clk 0:01:47]} 14. Bg5 {[%clk 0:01:59]}  Nxd3 {[%clk 0:01:16]} 15. cxd3 {[%clk 0:01:58]}  Nh5 {[%clk 0:01:01]} 16. Qf3 {[%clk 0:01:58]}  Bxg5 {[%clk 0:01:01]} 17. Qxh5 {[%clk 0:01:57]}  Bd7 {[%clk 0:00:56]} 18. Rf3 {[%clk 0:01:55]}  f6 {[%clk 0:00:53]} 19. Rh3 {[%clk 0:01:48]}  Bh6 {[%clk 0:00:52]} 20. Nd5 {[%clk 0:01:48]}  Bc6 {[%clk 0:00:49]} 21. Ne3 {[%clk 0:01:45]}  d5 {[%clk 0:00:49]} 22. Ng4 {[%clk 0:01:44]}  dxe4 {[%clk 0:00:40]} 23. Nxh6 {[%clk 0:01:42]}  gxh6 {[%clk 0:00:39]} 24. dxe4 {[%clk 0:01:34]}  Bxe4 {[%clk 0:00:32]} 25. Nc5 {[%clk 0:01:33]}  Bc6 {[%clk 0:00:19]} 26. Rd1 {[%clk 0:01:24]}  Qe7 {[%clk 0:00:18]} 27. Ne6 {[%clk 0:01:24]}  Rg8 {[%clk 0:00:18]} 28. Rg3 {[%clk 0:01:24]}  Rxg3 {[%clk 0:00:18]} 29. hxg3 {[%clk 0:01:25]}  Rg8 {[%clk 0:00:18]} 30. Kh2 {[%clk 0:01:24]}  Bd7 {[%clk 0:00:18]} 31. Nc5 {[%clk 0:01:01]}  Rg5 {[%clk 0:00:17]} 32. Qxh6 {[%clk 0:00:58]}  Bxf5 {[%clk 0:00:17]} 33. b4 {[%clk 0:00:37]}  Bg4 {[%clk 0:00:17]} 34. Rd5 {[%clk 0:00:15]}  Rh5+ {[%clk 0:00:16]} 35. Qxh5 {[%clk 0:00:16]}  Bxh5 {[%clk 0:00:17]} 36. Rd7 {[%clk 0:00:17]}  Qe8 {[%clk 0:00:15]} 37. Rxb7 {[%clk 0:00:17]}  e4 {[%clk 0:00:14]} 38. Nd7 {[%clk 0:00:16]}  Qe6 {[%clk 0:00:08]} 39. Nf8 {[%clk 0:00:11]}  Qf5 {[%clk 0:00:07]} 40. Rb8 {[%clk 0:00:08]}  Kg7 {[%clk 0:00:06]} 0-1


[Site "https://www.chess.com"]

[Event "Titled Tuesday Blitz October 19 2021"]
[White "Bordi, Kevin"]
[Black "Palchuk, Andrii"]
[WhiteFideId "621862"]
[BlackFideId "14176688"]
[WhiteElo "2751"]
[BlackElo "2322"]
[Result "1/2-1/2"]
[Round "05"]
[TimeControl "180+1"]
[Date "2021.10.19"]
[WhiteClock "0:00:08"]
[BlackClock "0:00:03"]

1. d4 {[%clk 0:03:00]}  d5 {[%clk 0:02:46]} 2. Bf4 {[%clk 0:03:00]}  Nf6 {[%clk 0:02:45]} 3. e3 {[%clk 0:03:00]}  c5 {[%clk 0:02:45]} 4. c3 {[%clk 0:03:00]}  Nc6 {[%clk 0:02:45]} 5. Nd2 {[%clk 0:03:00]}  cxd4 {[%clk 0:02:46]} 6. exd4 {[%clk 0:03:00]}  Bf5 {[%clk 0:02:46]} 7. Qb3 {[%clk 0:02:57]}  Qc8 {[%clk 0:02:45]} 8. Ngf3 {[%clk 0:02:57]}  e6 {[%clk 0:02:45]} 9. Be2 {[%clk 0:02:57]}  Be7 {[%clk 0:02:44]} 10. O-O {[%clk 0:02:58]}  O-O {[%clk 0:02:43]} 11. Rfe1 {[%clk 0:02:58]}  h6 {[%clk 0:02:34]} 12. Ne5 {[%clk 0:02:55]}  Nxe5 {[%clk 0:02:28]} 13. Bxe5 {[%clk 0:02:56]}  Nd7 {[%clk 0:02:23]} 14. Bg3 {[%clk 0:02:55]}  Rd8 {[%clk 0:02:05]} 15. Nf3 {[%clk 0:02:52]}  Be4 {[%clk 0:02:01]} 16. Ne5 {[%clk 0:02:45]}  Nxe5 {[%clk 0:01:59]} 17. Bxe5 {[%clk 0:02:46]}  Bd6 {[%clk 0:01:57]} 18. Bg3 {[%clk 0:02:34]}  Qc7 {[%clk 0:01:53]} 19. Qd1 {[%clk 0:02:24]}  Bxg3 {[%clk 0:01:36]} 20. hxg3 {[%clk 0:02:24]}  Qb6 {[%clk 0:01:37]} 21. Qd2 {[%clk 0:02:17]}  Rac8 {[%clk 0:01:35]} 22. Bf1 {[%clk 0:02:14]}  Bg6 {[%clk 0:01:34]} 23. g4 {[%clk 0:02:10]}  a5 {[%clk 0:01:30]} 24. a4 {[%clk 0:02:00]}  Rd6 {[%clk 0:01:12]} 25. Bb5 {[%clk 0:01:59]}  Qd8 {[%clk 0:01:10]} 26. Qf4 {[%clk 0:01:48]}  Rb6 {[%clk 0:01:05]} 27. Re3 {[%clk 0:01:29]}  Qg5 {[%clk 0:01:03]} 28. Qg3 {[%clk 0:01:26]}  Kf8 {[%clk 0:01:01]} 29. Rae1 {[%clk 0:01:26]}  Qd8 {[%clk 0:00:49]} 30. Re5 {[%clk 0:01:17]}  Qc7 {[%clk 0:00:48]} 31. Qh4 {[%clk 0:00:52]}  Qd8 {[%clk 0:00:40]} 32. Qh2 {[%clk 0:00:46]}  Kg8 {[%clk 0:00:37]} 33. Qg3 {[%clk 0:00:44]}  Qd6 {[%clk 0:00:24]} 34. g5 {[%clk 0:00:34]}  hxg5 {[%clk 0:00:21]} 35. Rxg5 {[%clk 0:00:33]}  Qxg3 {[%clk 0:00:21]} 36. Rxg3 {[%clk 0:00:34]}  Kf8 {[%clk 0:00:21]} 37. Rge3 {[%clk 0:00:34]}  Ke7 {[%clk 0:00:19]} 38. f3 {[%clk 0:00:35]}  Kf6 {[%clk 0:00:19]} 39. g4 {[%clk 0:00:34]}  Bh7 {[%clk 0:00:18]} 40. Kg2 {[%clk 0:00:35]}  g5 {[%clk 0:00:18]} 41. Kg3 {[%clk 0:00:34]}  Bg6 {[%clk 0:00:18]} 42. Rh1 {[%clk 0:00:34]}  Kg7 {[%clk 0:00:17]} 43. Rhe1 {[%clk 0:00:32]}  Rh8 {[%clk 0:00:16]} 44. Re5 {[%clk 0:00:32]}  Kf6 {[%clk 0:00:16]} 45. R5e2 {[%clk 0:00:31]}  Rd6 {[%clk 0:00:16]} 46. Rf2 {[%clk 0:00:28]}  Rdd8 {[%clk 0:00:16]} 47. Rh2 {[%clk 0:00:28]}  Rxh2 {[%clk 0:00:15]} 48. Kxh2 {[%clk 0:00:29]}  Rh8+ {[%clk 0:00:16]} 49. Kg3 {[%clk 0:00:30]}  b6 {[%clk 0:00:16]} 50. Rc1 {[%clk 0:00:28]}  Rc8 {[%clk 0:00:15]} 51. Rh1 {[%clk 0:00:28]}  Ke7 {[%clk 0:00:14]} 52. Rh2 {[%clk 0:00:26]}  Kd6 {[%clk 0:00:14]} 53. f4 {[%clk 0:00:24]}  gxf4+ {[%clk 0:00:14]} 54. Kxf4 {[%clk 0:00:25]}  Rg8 {[%clk 0:00:15]} 55. Rh6 {[%clk 0:00:21]}  Ke7 {[%clk 0:00:13]} 56. Rh2 {[%clk 0:00:21]}  Kf6 {[%clk 0:00:13]} 57. Rf2 {[%clk 0:00:21]}  Rh8 {[%clk 0:00:13]} 58. b4 {[%clk 0:00:16]}  Rh3 {[%clk 0:00:12]} 59. Rf3 {[%clk 0:00:13]}  Rh1 {[%clk 0:00:12]} 60. Rf1 {[%clk 0:00:12]}  Rh3 {[%clk 0:00:11]} 61. Rf3 {[%clk 0:00:11]}  Rh1 {[%clk 0:00:11]} 62. bxa5 {[%clk 0:00:12]}  bxa5 {[%clk 0:00:11]} 63. Rf1 {[%clk 0:00:09]}  Rh3 {[%clk 0:00:11]} 64. Rf3 {[%clk 0:00:08]}  Rh1 {[%clk 0:00:11]} 65. Rf1 {[%clk 0:00:02]}  Rh8 {[%clk 0:00:11]} 66. Kg3+ {[%clk 0:00:02]}  Ke7 {[%clk 0:00:11]} 67. Rc1 {[%clk 0:00:02]}  Be4 {[%clk 0:00:10]} 68. Kf4 {[%clk 0:00:02]}  Rh3 {[%clk 0:00:08]} 69. g5 {[%clk 0:00:02]}  f6 {[%clk 0:00:08]} 70. gxf6+ {[%clk 0:00:02]}  Kxf6 {[%clk 0:00:09]} 71. c4 {[%clk 0:00:03]}  Rf3+ {[%clk 0:00:09]} 72. Kg4 {[%clk 0:00:03]}  dxc4 {[%clk 0:00:09]} 73. Bxc4 {[%clk 0:00:03]}  Ra3 {[%clk 0:00:08]} 74. Bb5 {[%clk 0:00:03]}  Rb3 {[%clk 0:00:08]} 75. Rf1+ {[%clk 0:00:03]}  Ke7 {[%clk 0:00:08]} 76. Kf4 {[%clk 0:00:04]}  Bf5 {[%clk 0:00:08]} 77. Re1 {[%clk 0:00:03]}  Kd6 {[%clk 0:00:08]} 78. Rc1 {[%clk 0:00:03]}  Rb4 {[%clk 0:00:08]} 79. Rc6+ {[%clk 0:00:04]}  Kd5 {[%clk 0:00:09]} 80. Rc8 {[%clk 0:00:03]}  Rxd4+ {[%clk 0:00:08]} 81. Ke3 {[%clk 0:00:03]}  Rb4 {[%clk 0:00:09]} 82. Rd8+ {[%clk 0:00:03]}  Kc5 {[%clk 0:00:09]} 83. Rc8+ {[%clk 0:00:03]}  Kd6 {[%clk 0:00:09]} 84. Rc6+ {[%clk 0:00:04]}  Kd5 {[%clk 0:00:09]} 85. Ra6 {[%clk 0:00:05]}  Rb3+ {[%clk 0:00:08]} 86. Kd2 {[%clk 0:00:05]}  Kd4 {[%clk 0:00:09]} 87. Rxa5 {[%clk 0:00:05]}  Rb2+ {[%clk 0:00:09]} 88. Ke1 {[%clk 0:00:04]}  Ke3 {[%clk 0:00:10]} 89. Kf1 {[%clk 0:00:04]}  Bh3+ {[%clk 0:00:10]} 90. Kg1 {[%clk 0:00:04]}  Kf3 {[%clk 0:00:10]} 91. Bc6+ {[%clk 0:00:03]}  Kf4 {[%clk 0:00:10]} 92. Rb5 {[%clk 0:00:03]}  Rc2 {[%clk 0:00:09]} 93. Rb4+ {[%clk 0:00:03]}  Kg3 {[%clk 0:00:10]} 94. Rb3+ {[%clk 0:00:03]}  Kh4 {[%clk 0:00:10]} 95. Be4 {[%clk 0:00:04]}  Rc4 {[%clk 0:00:10]} 96. Bg2 {[%clk 0:00:03]}  Rc1+ {[%clk 0:00:09]} 97. Kh2 {[%clk 0:00:03]}  Bf5 {[%clk 0:00:09]} 98. Rb4+ {[%clk 0:00:03]}  Kg5 {[%clk 0:00:08]} 99. Kg3 {[%clk 0:00:04]}  Ra1 {[%clk 0:00:08]} 100. Bc6 {[%clk 0:00:03]}  Ra3+ {[%clk 0:00:09]} 101. Kf2 {[%clk 0:00:03]}  e5 {[%clk 0:00:09]} 102. Rb5 {[%clk 0:00:04]}  Kf4 {[%clk 0:00:07]} 103. Rb4+ {[%clk 0:00:04]}  e4 {[%clk 0:00:07]} 104. Ke2 {[%clk 0:00:04]}  Ra2+ {[%clk 0:00:07]} 105. Kd1 {[%clk 0:00:05]}  Ke3 {[%clk 0:00:06]} 106. Kc1 {[%clk 0:00:05]}  Kd3 {[%clk 0:00:06]} 107. Kb1 {[%clk 0:00:05]}  Rh2 {[%clk 0:00:05]} 108. Bb5+ {[%clk 0:00:05]}  Kc3 {[%clk 0:00:05]} 109. Rc4+ {[%clk 0:00:05]}  Kb3 {[%clk 0:00:04]} 110. Kc1 {[%clk 0:00:05]}  e3 {[%clk 0:00:04]} 111. Rf4 {[%clk 0:00:06]}  Rh1+ {[%clk 0:00:04]} 112. Rf1 {[%clk 0:00:06]}  Rxf1+ {[%clk 0:00:03]} 113. Bxf1 {[%clk 0:00:06]}  Kxa4 {[%clk 0:00:03]} 114. Kd1 {[%clk 0:00:06]}  Bg4+ {[%clk 0:00:03]} 115. Be2 {[%clk 0:00:07]}  Bf5 {[%clk 0:00:03]} 116. Bf3 {[%clk 0:00:07]}  Bd3 {[%clk 0:00:03]} 117. Be2 {[%clk 0:00:07]}  Be4 {[%clk 0:00:04]} 118. Bc4 {[%clk 0:00:07]}  Kb4 {[%clk 0:00:04]} 119. Ke2 {[%clk 0:00:07]}  Kxc4 {[%clk 0:00:03]} 120. Kxe3 {[%clk 0:00:08]} 1/2-1/2


[Site "https://www.chess.com"]

[Event "Titled Tuesday Blitz October 19 2021"]
[White "Borsuk, Konstantin"]
[Black "Sjugirov, Sanan"]
[WhiteFideId "14113406"]
[BlackFideId "4189302"]
[WhiteElo "2397"]
[BlackElo "2654"]
[Result "1/2-1/2"]
[Round "05"]
[TimeControl "180+1"]
[Date "2021.10.19"]
[WhiteClock "0:00:04"]
[BlackClock "0:00:23"]

1. d4 {[%clk 0:03:00]}  Nf6 {[%clk 0:03:00]} 2. c4 {[%clk 0:03:01]}  e6 {[%clk 0:03:00]} 3. Nc3 {[%clk 0:03:01]}  Bb4 {[%clk 0:03:00]} 4. Qc2 {[%clk 0:03:01]}  d5 {[%clk 0:03:00]} 5. cxd5 {[%clk 0:03:01]}  exd5 {[%clk 0:03:01]} 6. Bg5 {[%clk 0:03:00]}  h6 {[%clk 0:03:01]} 7. Bh4 {[%clk 0:03:01]}  O-O {[%clk 0:03:01]} 8. e3 {[%clk 0:03:00]}  Be6 {[%clk 0:03:01]} 9. a3 {[%clk 0:02:58]}  Be7 {[%clk 0:02:55]} 10. Bd3 {[%clk 0:02:56]}  Nbd7 {[%clk 0:02:52]} 11. Nge2 {[%clk 0:02:57]}  c5 {[%clk 0:02:52]} 12. O-O {[%clk 0:02:52]}  Rc8 {[%clk 0:02:52]} 13. Rfd1 {[%clk 0:02:47]}  a6 {[%clk 0:02:46]} 14. Nf4 {[%clk 0:02:46]}  cxd4 {[%clk 0:02:29]} 15. Nxe6 {[%clk 0:02:44]}  fxe6 {[%clk 0:02:28]} 16. exd4 {[%clk 0:02:44]}  e5 {[%clk 0:02:13]} 17. dxe5 {[%clk 0:02:40]}  Nxe5 {[%clk 0:02:14]} 18. Bf5 {[%clk 0:02:40]}  Rc6 {[%clk 0:02:08]} 19. Qe2 {[%clk 0:02:36]}  Nf7 {[%clk 0:02:07]} 20. Bxf6 {[%clk 0:02:09]}  Bxf6 {[%clk 0:02:08]} 21. Nxd5 {[%clk 0:02:08]}  Rd6 {[%clk 0:02:01]} 22. Nf4 {[%clk 0:01:34]}  Bxb2 {[%clk 0:01:50]} 23. Rab1 {[%clk 0:00:47]}  Rxd1+ {[%clk 0:01:36]} 24. Rxd1 {[%clk 0:00:45]}  Qf6 {[%clk 0:01:36]} 25. Nd5 {[%clk 0:00:34]}  Qg5 {[%clk 0:01:02]} 26. Qxb2 {[%clk 0:00:22]}  Re8 {[%clk 0:00:59]} 27. Bd7 {[%clk 0:00:13]}  Qxd5 {[%clk 0:00:56]} 28. Qb1 {[%clk 0:00:05]}  Qe5 {[%clk 0:00:42]} 29. Bxe8 {[%clk 0:00:05]}  Qxe8 {[%clk 0:00:43]} 30. Qxb7 {[%clk 0:00:04]}  Qa4 {[%clk 0:00:44]} 31. Qa8+ {[%clk 0:00:03]}  Kh7 {[%clk 0:00:43]} 32. Qf3 {[%clk 0:00:04]}  Ne5 {[%clk 0:00:42]} 33. Qf5+ {[%clk 0:00:04]}  g6 {[%clk 0:00:39]} 34. Qb1 {[%clk 0:00:03]}  h5 {[%clk 0:00:37]} 35. Re1 {[%clk 0:00:03]}  Qa5 {[%clk 0:00:36]} 36. h3 {[%clk 0:00:02]}  Qc7 {[%clk 0:00:30]} 37. Qe4 {[%clk 0:00:03]}  Nf7 {[%clk 0:00:28]} 38. a4 {[%clk 0:00:03]}  Qa5 {[%clk 0:00:28]} 39. Qe6 {[%clk 0:00:04]}  Kg7 {[%clk 0:00:27]} 40. Rd1 {[%clk 0:00:04]}  Qxa4 {[%clk 0:00:26]} 41. Rd7 {[%clk 0:00:04]}  Qf4 {[%clk 0:00:24]} 42. Ra7 {[%clk 0:00:03]}  Qc1+ {[%clk 0:00:24]} 43. Kh2 {[%clk 0:00:03]}  Qf4+ {[%clk 0:00:24]} 44. Kg1 {[%clk 0:00:03]}  Qc1+ {[%clk 0:00:24]} 45. Kh2 {[%clk 0:00:04]}  Qf4+ {[%clk 0:00:23]} 46. Kg1 {[%clk 0:00:04]} 1/2-1/2


[Site "https://www.chess.com"]